bitfinex-derivatives/quotes_BTCF0:USTF0_20250330
["timestamp","ask_amount","ask_price","bid_price","bid_amount"]
[1743316819469,0.0004,83044.0,83043.0,1.0279532]
[1743316822868,0.0004,83044.0,83043.0,1.0249532]
[1743316823064,0.0004,83044.0,83043.0,1.0279532]
[1743316825478,0.0004,83044.0,83043.0,1.0239532]
[1743316825673,0.0004,83044.0,83043.0,1.0279532]
[1743316827788,0.0004,83044.0,83043.0,1.0277532]
[1743316828582,0.0004,83044.0,83043.0,1.0237532]
[1743316828881,0.0004,83044.0,83043.0,1.80678276]
[1743316829085,0.0004,83044.0,83043.0,1.80978276]
[1743316829981,0.0004,83044.0,83043.0,1.80578276]
[1743316830182,0.0004,83044.0,83043.0,1.80978276]
[1743316830382,0.0004,83044.0,83043.0,1.08818276]
[1743316830578,0.0004,83044.0,83043.0,1.80978276]
[1743316831574,0.0004,83044.0,83043.0,1.80578276]
[1743316831783,0.0004,83044.0,83043.0,1.80978276]
[1743316833089,0.0004,83044.0,83043.0,1.44935247]
[1743316834087,0.0315,83052.0,83051.0,0.1204416]
[1743316834295,0.0315,83052.0,83051.0,0.4820416]
[1743316834296,0.0637,83052.0,83051.0,0.4820416]
[1743316834597,0.0629,83052.0,83051.0,0.5968416]
[1743316834989,0.0629,83052.0,83051.0,0.6619416]
[1743316835190,0.0629,83052.0,83051.0,0.6629416]
[1743316835588,0.0629,83052.0,83051.0,0.6639416]
[1743316836589,0.0629,83052.0,83051.0,0.6629416]
[1743316836788,0.0629,83052.0,83051.0,0.67468113]
[1743316838281,0.0629,83052.0,83051.0,0.67368113]
[1743316838484,0.0629,83052.0,83051.0,0.67468113]
[1743316838887,0.0629,83052.0,83051.0,0.67368113]
[1743316839086,0.0629,83052.0,83051.0,0.67468113]
[1743316839487,0.0629,83052.0,83051.0,0.67368113]
[1743316839696,0.0629,83052.0,83051.0,0.67468113]
[1743316842995,0.0629,83052.0,83051.0,0.96331384]
[1743316844293,0.0629,83052.0,83051.0,0.95253431]
[1743316844484,0.0629,83052.0,83051.0,0.95249431]
[1743316845393,0.0629,83052.0,83051.0,0.96296694]
[1743316846091,0.0629,83052.0,83051.0,0.67433423]
[1743316846289,0.1080256,83055.0,83054.0,0.1204373]
[1743316846496,0.1088656,83055.0,83054.0,0.1212773]
[1743316846691,0.1396656,83055.0,83054.0,0.1212773]
[1743316847092,0.1396656,83055.0,83054.0,0.1854773]
[1743316847696,0.1396656,83055.0,83054.0,0.1864773]
[1743316848086,0.1396656,83055.0,83054.0,0.5472773]
[1743316849794,0.03164,83055.0,83054.0,0.83626357]
[1743316849993,0.0308,83055.0,83054.0,0.83626357]
[1743316850196,0.0617,83055.0,83054.0,0.83626357]
[1743316851498,0.1080256,83056.0,83055.0,0.1204358]
[1743316851700,0.1080256,83056.0,83055.0,0.1840358]
[1743316852290,0.1086656,83056.0,83055.0,0.1840358]
[1743316852501,0.1080256,83056.0,83055.0,0.1840358]
[1743316853791,0.1080256,83056.0,83055.0,0.19300548]
[1743316854591,0.1080256,83056.0,83055.0,0.55380548]
[1743316855601,0.1080256,83056.0,83055.0,0.55780548]
[1743316856193,0.1080256,83056.0,83055.0,0.56080548]
[1743316856593,0.0004,83060.0,83059.0,0.12043]
[1743316856793,0.0012,83060.0,83059.0,0.12123]
[1743316857297,0.0012,83060.0,83059.0,0.18223]
[1743316857895,0.0012,83060.0,83059.0,0.18423]
[1743316859102,0.0012,83060.0,83059.0,0.18623]
[1743316859300,0.0012,83060.0,83059.0,0.30083]
[1743316862202,0.0004,83060.0,83059.0,0.30083]
[1743316862398,0.0004,83060.0,83059.0,0.29883]
[1743316862599,0.0004,83060.0,83059.0,0.29983]
[1743316863306,0.0004,83060.0,83059.0,0.30083]
[1743316865810,0.0004,83060.0,83059.0,1.02243]
[1743316867703,0.0004,83060.0,83059.0,1.02043]
[1743316867911,0.0004,83060.0,83059.0,1.02243]
[1743316868396,0.0004,83060.0,83059.0,1.02043]
[1743316868602,0.0004,83060.0,83059.0,1.02243]
[1743316871508,0.0004,83060.0,83059.0,1.02043]
[1743316871712,0.0004,83060.0,83059.0,1.02243]
[1743316874214,0.0004,83060.0,83059.0,1.44244178]
[1743316877610,0.0004,83076.0,83075.0,0.1204068]
[1743316877815,0.00128,83076.0,83075.0,0.5966868]
[1743316878010,0.0004,83076.0,83075.0,0.5966868]
[1743316878210,0.0004,83076.0,83075.0,0.6611868]
[1743316882112,0.0004,83076.0,83075.0,1.02118626]
[1743316885414,0.0004,83076.0,83075.0,0.6611868]
[1743316886721,0.0004,83076.0,83075.0,1.0219868]
[1743316887519,0.1080256,83103.0,83075.0,1.0219868]
[1743316887520,0.1080256,83103.0,83089.0,0.1203865]
[1743316887713,0.0985,83099.0,83091.0,0.8419836]
[1743316887909,0.0985,83099.0,83091.0,0.85336525]
[1743316888114,0.0985,83099.0,83091.0,0.91606525]
[1743316890915,1e-07,83092.0,83091.0,0.91606525]
[1743316904233,1e-07,83092.0,83091.0,1.03062525]
[1743316906731,1e-07,83092.0,83091.0,0.91606525]
[1743316907034,1e-07,83092.0,83091.0,1.03062525]
[1743316914539,1e-07,83092.0,83091.0,0.30902525]
[1743316914738,1e-07,83092.0,83091.0,1.03062525]
[1743316915137,1e-07,83092.0,83091.0,1.3260135]
[1743316915342,1e-07,83092.0,83091.0,1.4405735]
[1743316920044,1e-07,83092.0,83091.0,0.7189735]
[1743316920240,1e-07,83092.0,83091.0,1.4405735]
[1743316922348,1e-07,83092.0,83091.0,1.48664811]
[1743316926155,1e-07,83092.0,83091.0,2.36052811]
[1743316926659,1e-07,83092.0,83091.0,2.7920385]
[1743316927753,0.0957,83099.0,83098.0,0.1203735]
[1743316927954,0.09662,83099.0,83098.0,0.4820935]
[1743316928839,0.09662,83099.0,83098.0,0.5421935]
[1743316929439,0.09662,83099.0,83098.0,0.55130582]
[1743316930953,0.09662,83099.0,83098.0,1.42518582]
[1743316931152,0.0957,83099.0,83098.0,1.42518582]
[1743316931355,0.0957,83099.0,83098.0,1.53970582]
[1743316931943,0.0394033,83100.0,83099.0,0.120372]
[1743316932256,0.0634,83114.0,83113.0,0.1203518]
[1743316932455,0.1088256,83115.0,83114.0,0.1203503]
[1743316932649,0.1088256,83115.0,83114.0,0.1515503]
[1743316932855,0.1080256,83115.0,83114.0,0.1515503]
[1743316934258,0.1080256,83123.0,83122.0,0.1203387]
[1743316934446,0.1080256,83123.0,83122.0,0.5964587]
[1743316934650,0.1089056,83123.0,83122.0,0.5964587]
[1743316935248,0.1286056,83123.0,83122.0,0.5964587]
[1743316935649,0.1771056,83123.0,83122.0,0.5964587]
[1743316938457,0.06908,83123.0,83122.0,0.5964587]
[1743316938658,0.0682,83123.0,83122.0,0.5964587]
[1743316939452,0.0682,83123.0,83122.0,0.2356587]
[1743316939663,0.0682,83123.0,83122.0,0.5964587]
[1743316940462,0.0682,83123.0,83122.0,0.2356587]
[1743316940666,0.0682,83123.0,83122.0,0.5964587]
[1743316942454,0.0004,83124.0,83123.0,0.1203373]
[1743316942657,0.0004,83124.0,83123.0,0.1211373]
[1743316946163,0.0004,83124.0,83123.0,0.1518373]
[1743316947462,0.0004,83124.0,83123.0,0.5126373]
[1743316952465,0.0004,83124.0,83123.0,0.5458373]
[1743316954568,0.0004,83124.0,83123.0,0.1850373]
[1743316954769,0.0004,83124.0,83123.0,0.5458373]
[1743316955971,0.0004,83124.0,83123.0,0.1850373]
[1743316956360,0.0004,83124.0,83123.0,0.5458373]
[1743316956565,0.0004,83124.0,83123.0,0.5964573]
[1743316957069,0.0113047,83124.0,83123.0,0.5964573]
[1743316958074,0.0113047,83124.0,83123.0,0.6291573]
[1743316958459,0.0113047,83124.0,83123.0,0.6609573]
[1743316959073,0.1613047,83124.0,83123.0,0.6609573]
[1743316959579,0.1613047,83124.0,83123.0,0.2356573]
[1743316959780,0.1621047,83124.0,83123.0,0.2356573]
[1743316959968,0.1613047,83124.0,83123.0,0.2356573]
[1743316960169,0.1613047,83124.0,83123.0,0.2689573]
[1743316960477,0.1621047,83124.0,83123.0,0.1544373]
[1743316962474,0.0121047,83124.0,83123.0,0.1862373]
[1743316962773,0.0113047,83124.0,83123.0,0.1862373]
[1743316963475,0.0632847,83124.0,83123.0,0.1211373]
[1743316963675,0.0829847,83124.0,83123.0,0.1211373]
[1743316964072,0.0829847,83124.0,83123.0,0.1527373]
[1743316964476,0.0829847,83124.0,83123.0,0.1845373]
[1743316966777,0.07208,83124.0,83123.0,0.1845373]
[1743316968285,0.08323818,83124.0,83123.0,0.1845373]
[1743316970384,0.2274675,83124.0,83123.0,0.1845373]
[1743316971683,0.21630932,83124.0,83123.0,0.1845373]
[1743316973272,0.22731374,83124.0,83123.0,0.1845373]
[1743316973473,0.22723374,83124.0,83123.0,0.1845373]
[1743316973680,0.21622932,83124.0,83123.0,0.1845373]
[1743316974973,0.22729237,83124.0,83123.0,0.1845373]
[1743316975368,0.21622932,83124.0,83123.0,0.1845373]
[1743316975586,0.18302932,83124.0,83123.0,0.1845373]
[1743316976280,0.19408242,83124.0,83123.0,0.1845373]
[1743316977374,0.19408242,83124.0,83123.0,0.5453373]
[1743316977982,0.0498531,83124.0,83123.0,0.5453373]
[1743316978389,0.0122531,83124.0,83123.0,0.5453373]
[1743316979382,0.0012,83124.0,83123.0,0.5453373]
[1743316979774,0.0012,83124.0,83123.0,0.1845373]
[1743316979975,0.0012,83124.0,83123.0,0.5453373]
[1743316980478,0.1207358,83124.0,83123.0,0.5453373]
[1743316980684,0.1215358,83124.0,83123.0,0.5453373]
[1743316982479,0.1215358,83124.0,83123.0,0.1845373]
[1743316982687,0.1215358,83124.0,83123.0,0.5453373]
[1743316982984,0.0012,83124.0,83123.0,0.5453373]
[1743316985983,0.1215358,83124.0,83123.0,0.5453373]
[1743316986181,0.0004,83124.0,83123.0,0.5453373]
[1743316986378,0.00124,83124.0,83123.0,0.5453373]
[1743316986885,0.00124,83124.0,83123.0,0.1845373]
[1743316987080,0.00124,83124.0,83123.0,0.5453373]
[1743316987685,0.0004,83124.0,83123.0,0.5453373]
[1743316987885,0.18018796,83126.0,83125.0,0.1203344]
[1743316988082,0.18106796,83126.0,83125.0,0.1212144]
[1743316988282,0.18106796,83126.0,83125.0,0.13222858]
[1743316990391,0.00088,83126.0,83125.0,0.13222858]
[1743316992682,0.00088,83126.0,83125.0,0.49302858]
[1743316997181,0.00088,83126.0,83125.0,0.13222858]
[1743316997379,0.00088,83126.0,83125.0,0.49302858]
[1743317000093,0.00088,83126.0,83125.0,0.4820144]
[1743317000798,0.00088,83126.0,83125.0,0.5965344]
[1743317002495,0.00088,83126.0,83125.0,0.60769205]
[1743317008189,0.00088,83126.0,83125.0,0.24689205]
[1743317008599,0.00088,83126.0,83125.0,0.60769205]
[1743317010404,0.00088,83126.0,83125.0,0.24689205]
[1743317010595,0.00088,83126.0,83125.0,0.60769205]
[1743317012099,0.10906133,83126.0,83125.0,0.60769205]
[1743317019611,0.14516695,83126.0,83125.0,0.60769205]
[1743317020015,0.14516695,83126.0,83125.0,0.66919205]
[1743317020610,0.14516695,83126.0,83125.0,0.30839205]
[1743317020912,0.14516695,83126.0,83125.0,0.66919205]
[1743317023310,0.14508695,83126.0,83125.0,0.66919205]
[1743317023516,0.14428695,83126.0,83125.0,0.66919205]
[1743317023913,0.14428695,83126.0,83125.0,0.66915205]
[1743317024512,0.14516695,83126.0,83125.0,0.66915205]
[1743317027413,0.14428695,83126.0,83125.0,0.66915205]
[1743317027615,0.14508695,83126.0,83125.0,0.66915205]
[1743317028014,0.14428695,83126.0,83125.0,0.66915205]
[1743317029420,0.23868959,83130.0,83128.0,0.0601644]
[1743317029625,0.23948959,83130.0,83129.0,0.4563]
[1743317029824,0.23948959,83130.0,83129.0,0.4571]
[1743317030122,0.23948959,83130.0,83129.0,0.5774286]
[1743317031123,0.35981669,83130.0,83129.0,0.5774286]
[1743317031425,0.37991669,83130.0,83129.0,0.5774286]
[1743317032814,0.32141506,83130.0,83129.0,0.5774286]
[1743317033326,0.20108796,83130.0,83129.0,0.5774286]
[1743317033826,0.32141506,83130.0,83129.0,0.5774286]
[1743317035525,0.32141506,83130.0,83129.0,0.6919086]
[1743317036121,0.1412271,83130.0,83129.0,0.6919086]
[1743317036931,0.1591271,83130.0,83129.0,0.6919086]
[1743317037131,0.1591271,83130.0,83129.0,0.6588086]
[1743317038230,0.1591271,83130.0,83129.0,0.2980086]
[1743317038630,0.1591271,83130.0,83129.0,0.6588086]
[1743317040232,0.1591271,83130.0,83129.0,0.2980086]
[1743317040435,0.1412271,83130.0,83129.0,0.2980086]
[1743317040634,0.1211271,83130.0,83129.0,0.6588086]
[1743317043028,0.0008,83130.0,83129.0,0.6588086]
[1743317044338,0.0008,83130.0,83129.0,0.2980086]
[1743317044538,0.0008,83130.0,83129.0,0.6588086]
[1743317046235,0.18018796,83131.0,83130.0,0.1203271]
[1743317046429,0.18122797,83131.0,83130.0,0.1213671]
[1743317046631,0.18122797,83131.0,83130.0,0.1514671]
[1743317047735,0.18122797,83131.0,83130.0,0.1830671]
[1743317049539,0.18122797,83131.0,83130.0,0.2131671]
[1743317050142,0.00104001,83131.0,83130.0,0.2131671]
[1743317050334,0.10818321,83137.0,83136.0,0.1203185]
[1743317050638,0.10922322,83137.0,83136.0,0.4821585]
[1743317051338,0.10922322,83137.0,83136.0,0.5464585]
[1743317052342,0.10922322,83137.0,83136.0,0.6609385]
[1743317053444,0.00104001,83137.0,83136.0,0.6609385]
[1743317053743,0.10818321,83139.0,83138.0,0.1203156]
[1743317053942,0.10818321,83139.0,83138.0,0.1213556]
[1743317054434,0.10818321,83139.0,83138.0,0.5469556]
[1743317056546,0.10818321,83139.0,83138.0,0.55845143]
[1743317057740,0.10818321,83142.0,83139.0,0.1203141]
[1743317057945,0.10818321,83142.0,83139.0,0.1868541]
[1743317061550,0.10818321,83142.0,83139.0,0.9084541]
[1743317061743,0.10818321,83142.0,83141.0,0.1203112]
[1743317061945,0.10818321,83154.0,83153.0,0.1202939]
[1743317062140,0.10922322,83154.0,83153.0,0.5966139]
[1743317062556,0.10922322,83154.0,83153.0,0.6295139]
[1743317063746,0.10922322,83154.0,83153.0,0.64074551]
[1743317064152,0.14424428,83157.0,83155.0,0.120291]
[1743317064359,0.21469938,83167.0,83166.0,0.1202751]
[1743317064551,0.21601938,83167.0,83166.0,0.5968751]
[1743317065147,0.21601938,83167.0,83166.0,0.60582034]
[1743317066459,0.00132,83167.0,83166.0,0.49134034]
[1743317066650,0.00132,83167.0,83166.0,0.60578034]
[1743317066855,0.18029669,83172.0,83171.0,0.1202678]
[1743317067156,0.18161669,83172.0,83171.0,0.4823878]
[1743317067349,0.18029669,83172.0,83171.0,0.4823878]
[1743317067749,0.18029669,83172.0,83171.0,0.5444878]
[1743317069860,0.25088261,83188.0,83187.0,0.1202447]
[1743317070060,0.25240261,83188.0,83187.0,0.8433647]
[1743317070453,0.25240261,83188.0,83187.0,0.9578047]
[1743317070757,0.25240261,83188.0,83187.0,1.0216047]
[1743317071257,0.25240261,83188.0,83187.0,1.03279497]
[1743317071458,0.00192,83188.0,83187.0,1.03279497]
[1743317071659,0.0004,83188.0,83187.0,1.03279497]
[1743317074659,0.0004,83188.0,83187.0,0.4825647]
[1743317074966,0.0004,83188.0,83187.0,0.5970047]
[1743317075263,0.00192,83188.0,83187.0,0.5970047]
[1743317075465,0.0004,83188.0,83187.0,0.5970047]
[1743317080457,0.00196001,83188.0,83187.0,0.5970047]
[1743317081056,0.00196001,83188.0,83187.0,0.5969647]
[1743317081764,0.0004,83188.0,83187.0,0.5969647]
[1743317081964,0.002,83188.0,83187.0,0.5969647]
[1743317082162,0.002,83188.0,83187.0,0.2361647]
[1743317082359,0.002,83188.0,83187.0,0.5969647]
[1743317083858,0.0004,83188.0,83187.0,0.5969647]
[1743317084058,0.002,83188.0,83187.0,0.5969647]
[1743317085866,0.0004,83188.0,83187.0,0.5969647]
[1743317086066,0.06806001,83188.0,83187.0,0.5969647]
[1743317086458,0.06806001,83188.0,83187.0,0.6298647]
[1743317087168,0.18830331,83188.0,83187.0,0.5969647]
[1743317087466,0.0681,83188.0,83187.0,0.5969647]
[1743317087665,0.0665,83188.0,83187.0,0.5969647]
[1743317087866,0.1882633,83188.0,83187.0,0.5969647]
[1743317089670,0.1882633,83188.0,83187.0,0.6615647]
[1743317089867,0.06802,83188.0,83187.0,0.6615647]
[1743317091367,0.1882633,83188.0,83187.0,0.5969647]
[1743317091768,0.1882633,83188.0,83187.0,0.4825647]
[1743317091971,0.1882633,83188.0,83187.0,0.5969647]
[1743317094167,0.1882633,83188.0,83187.0,0.2361647]
[1743317095771,0.1882633,83188.0,83187.0,0.00152]
[1743317095964,0.1882633,83188.0,83187.0,0.11592]
[1743317096775,0.1882633,83188.0,83187.0,0.00152]
[1743317097167,0.1882633,83188.0,83187.0,0.21693649]
[1743317097769,0.1882633,83188.0,83187.0,0.33718119]
[1743317098570,0.1882633,83188.0,83187.0,0.36758119]
[1743317098879,0.1882633,83188.0,83187.0,0.39898119]
[1743317100078,0.1882633,83188.0,83187.0,0.1835647]
[1743317104674,0.1882633,83188.0,83187.0,0.00152]
[1743317106478,0.6069633,83188.0,83187.0,0.00152]
[1743317106683,0.1202447,83187.0,83186.0,0.21549649]
[1743317106879,0.1218847,83187.0,83186.0,0.21713649]
[1743317107185,0.1533847,83187.0,83186.0,0.21713649]
[1743317107377,0.1851847,83187.0,83186.0,0.21713649]
[1743317108183,0.1851847,83187.0,83186.0,0.00172]
[1743317108376,0.1851847,83187.0,83186.0,8e-05]
[1743317108979,0.1202548,83180.0,83179.0,0.00018036]
[1743317109173,0.9012748,83180.0,83179.0,0.00170036]
[1743317109375,0.9012748,83180.0,83179.0,0.00018036]
[1743317109585,0.9012748,83180.0,83179.0,0.00170036]
[1743317109789,0.9642748,83180.0,83179.0,0.00018036]
[1743317111191,0.9642748,83180.0,83179.0,0.00118036]
[1743317111787,0.9642748,83180.0,83179.0,0.00018036]
[1743317119787,0.9642748,83180.0,83179.0,0.00174036]
[1743317121896,0.9642748,83180.0,83179.0,0.00018036]
[1743317124189,0.9012748,83180.0,83179.0,0.00174036]
[1743317124391,0.9012748,83180.0,83179.0,0.00018036]
[1743317124594,0.9012748,83180.0,83179.0,0.12195666]
[1743317126400,0.5404748,83180.0,83179.0,0.12195666]
[1743317129904,0.1217748,83180.0,83179.0,0.12195666]
[1743317133206,0.1237748,83180.0,83179.0,0.12195666]
[1743317133600,0.1217748,83180.0,83179.0,0.12195666]
[1743317133802,0.1227748,83180.0,83179.0,0.12195666]
[1743317140216,0.1558748,83180.0,83179.0,0.12195666]
[1743317146219,0.1867748,83180.0,83179.0,0.12195666]
[1743317147532,0.1867748,83180.0,83179.0,0.00170036]
[1743317147719,0.1867748,83180.0,83179.0,0.12195666]
[1743317149924,0.00252,83180.0,83179.0,0.12195666]
[1743317150133,0.00092,83180.0,83179.0,0.12195666]
[1743317150717,0.00092,83180.0,83179.0,0.13362593]
[1743317151126,0.13019503,83183.0,83182.0,0.1202519]
[1743317151332,0.03191503,83183.0,83182.0,0.4825719]
[1743317151638,0.03191503,83183.0,83182.0,0.6325719]
[1743317152629,0.00252,83183.0,83182.0,0.6325719]
[1743317152832,0.001,83183.0,83182.0,0.6325719]
[1743317155032,0.001,83183.0,83182.0,0.6938719]
[1743317155421,0.001,83183.0,83182.0,0.8082719]
[1743317157632,0.0004,83188.0,83187.0,0.1202447]
[1743317158037,0.0004,83188.0,83187.0,0.8418447]
[1743317158429,0.0004,83188.0,83187.0,0.9049447]
[1743317159734,0.0014,83188.0,83187.0,0.9049447]
[1743317161325,0.0014,83188.0,83187.0,0.1833447]
[1743317161526,0.0014,83188.0,83187.0,0.9049447]
[1743317163132,0.0014,83188.0,83187.0,0.9064647]
[1743317165839,0.0014,83188.0,83187.0,1.1209443]
[1743317170140,0.0317,83203.0,83197.0,0.1202302]
[1743317170347,0.10152,83200.0,83199.0,0.4810274]
[1743317170643,0.1,83200.0,83199.0,0.4825474]
[1743317170835,0.1,83200.0,83199.0,0.5455474]
[1743317171334,1e-07,83204.0,83203.0,0.1202216]
[1743317171543,0.0298,83219.0,83218.0,0.1201999]
[1743317171744,0.0623,83219.0,83218.0,0.9578399]
[1743317172258,0.0322,83224.0,83218.0,0.9578399]
[1743317172259,0.0322,83224.0,83219.0,0.1201985]
[1743317172546,0.0322,83224.0,83219.0,0.1217585]
[1743317172847,0.0249,83223.0,83222.0,0.1201941]
[1743317173143,0.0249,83223.0,83222.0,0.1217141]
[1743317174850,0.056,83223.0,83222.0,0.2363141]
[1743317175636,0.056,83223.0,83222.0,0.9579141]
[1743317175941,0.056,83223.0,83222.0,0.9900141]
[1743317177936,0.056,83223.0,83222.0,0.8754141]
[1743317178248,0.056,83223.0,83222.0,0.9579541]
[1743317182940,0.056,83223.0,83222.0,0.9578741]
[1743317185849,0.0004,83236.0,83235.0,0.1201754]
[1743317186050,0.00192,83236.0,83235.0,0.5970954]
[1743317186259,0.0004,83236.0,83235.0,0.5970954]
[1743317187152,0.0004,83236.0,83235.0,0.6277954]
[1743317190548,0.0616,83246.0,83245.0,0.1201609]
[1743317190858,0.06316001,83246.0,83245.0,0.5972009]
[1743317191059,0.0616,83246.0,83245.0,0.5972009]
[1743317191560,0.0616,83246.0,83245.0,0.6589009]
[1743317193059,0.0616,83246.0,83245.0,0.6705892]
[1743317194360,0.0004,83252.0,83251.0,0.1201523]
[1743317194567,0.0004,83252.0,83251.0,0.4825523]
[1743317195357,0.0004,83252.0,83251.0,0.5466523]
[1743317195757,0.0004,83252.0,83251.0,0.55584724]
[1743317196147,0.0004,83252.0,83251.0,0.67048724]
[1743317200358,0.0004,83252.0,83251.0,0.70308724]
[1743317200956,0.0004,83252.0,83251.0,0.98906004]
[1743317202272,0.0332,83266.0,83265.0,0.1201321]
[1743317202463,0.00152,83266.0,83265.0,0.5970921]
[1743317202668,0.0333,83267.0,83265.0,0.5970921]
[1743317202669,0.0600445,83295.0,83283.0,0.1201061]
[1743317202862,0.3608,83302.0,83283.0,0.5975461]
[1743317203067,0.1200912,83294.0,83283.0,0.5975461]
[1743317203567,0.0600467,83292.0,83283.0,0.5975461]
[1743317203878,0.1200985,83289.0,83283.0,0.5975461]
[1743317204170,0.0600432,83297.0,83283.0,0.5975461]
[1743317204358,0.1200936,83292.0,83283.0,0.5975461]
[1743317204555,0.1200955,83291.0,83283.0,0.5975461]
[1743317204755,0.1200955,83291.0,83283.0,0.6586461]
[1743317204972,0.1200851,83298.0,83283.0,0.6586461]
[1743317205166,0.1200866,83297.0,83283.0,0.6586461]
[1743317205668,0.0600424,83298.0,83283.0,0.6586461]
[1743317205863,0.0943,83287.0,83283.0,0.6586461]
[1743317208671,0.0600431,83297.0,83283.0,0.6586461]
[1743317208872,0.0308,83286.0,83283.0,0.6586461]
[1743317210576,0.04342684,83288.0,83287.0,0.1201003]
[1743317210774,0.04342684,83288.0,83287.0,0.1221003]
[1743317210964,0.3608,83319.0,83299.0,0.120083]
[1743317211273,0.03,83315.0,83299.0,0.958483]
[1743317212981,0.03,83315.0,83299.0,0.843683]
[1743317213169,0.03,83315.0,83299.0,0.958483]
[1743317213477,0.03,83315.0,83299.0,0.958523]
[1743317213779,0.0636,83314.0,83299.0,1.02931322]
[1743317214373,0.0636,83314.0,83299.0,0.905383]
[1743317214572,0.0636,83314.0,83299.0,1.020223]
[1743317215474,0.0636,83314.0,83299.0,0.874983]
[1743317215675,0.0636,83314.0,83299.0,0.958563]
[1743317215872,0.1200644,83312.0,83299.0,0.958563]
[1743317216174,0.1200644,83312.0,83299.0,0.843683]
[1743317216374,0.0004,83316.0,83315.0,0.12006]
[1743317216577,0.0004,83316.0,83315.0,0.5979]
[1743317217168,0.0004,83316.0,83315.0,0.662]
[1743317218277,0.0004,83316.0,83315.0,0.5979]
[1743317218675,0.0004,83316.0,83315.0,0.66]
[1743317220572,0.0004,83316.0,83315.0,0.6292]
[1743317220773,0.0004,83316.0,83315.0,0.48286]
[1743317220972,0.0004,83316.0,83315.0,0.59798]
[1743317221583,0.0004,83316.0,83315.0,0.48286]
[1743317222773,0.4812585,83316.0,83315.0,0.12206]
[1743317223079,0.6312585,83316.0,83315.0,0.12206]
[1743317223280,0.6312585,83316.0,83315.0,0.12006]
[1743317223481,0.6312585,83316.0,83315.0,0.1221]
[1743317223785,0.6312585,83316.0,83315.0,0.12006]
[1743317224980,0.64298053,83316.0,83315.0,0.12006]
[1743317225674,0.64298053,83316.0,83315.0,0.002]
[1743317225879,0.12006,83315.0,83314.0,0.1201404]
[1743317226089,0.1200701,83308.0,83307.0,0.00018013]
[1743317226380,0.1200874,83296.0,83292.0,0.1200924]
[1743317226680,0.48228741,83296.0,83295.0,0.16528323]
[1743317226873,0.63228741,83296.0,83295.0,0.16528323]
[1743317227777,0.63228741,83296.0,83295.0,0.00148]
[1743317227976,0.1200917,83293.0,83292.0,8e-05]
[1743317228175,0.1215717,83293.0,83292.0,0.00156]
[1743317228382,0.2715717,83293.0,83292.0,0.00156]
[1743317229082,0.1200989,83288.0,83287.0,0.28615293]
[1743317229279,0.1208589,83288.0,83287.0,0.28615293]
[1743317229479,0.2708589,83288.0,83287.0,0.28615293]
[1743317229881,0.3012589,83288.0,83287.0,0.28707293]
[1743317231282,0.1512589,83288.0,83287.0,0.28707293]
[1743317231583,0.1512589,83288.0,83287.0,0.40717323]
[1743317231978,0.1512589,83288.0,83287.0,0.18390043]
[1743317235275,0.1512589,83288.0,83287.0,0.18298043]
[1743317236381,0.1812589,83288.0,83287.0,0.18298043]
[1743317238695,0.1528589,83288.0,83287.0,0.18298043]
[1743317238998,0.1528589,83288.0,83287.0,0.18398043]
[1743317239180,0.1528589,83288.0,83287.0,0.06388013]
[1743317239385,0.1528589,83288.0,83287.0,0.06288013]
[1743317239687,0.1528589,83288.0,83287.0,0.06388013]
[1743317239877,0.1528589,83288.0,83287.0,0.03258013]
[1743317240083,0.1528589,83288.0,83287.0,0.03158013]
[1743317240295,0.1528589,83288.0,83287.0,0.03250013]
[1743317242091,0.1528589,83288.0,83287.0,0.03158013]
[1743317242290,0.1528589,83288.0,83287.0,0.03258013]
[1743317242477,0.1528589,83288.0,83287.0,0.03158013]
[1743317242683,0.1528589,83288.0,83287.0,0.03250013]
[1743317242887,0.1528589,83288.0,83287.0,0.15260043]
[1743317243199,0.1528589,83288.0,83287.0,0.18540043]
[1743317243588,0.1528589,83288.0,83287.0,0.06530013]
[1743317244883,0.1528589,83288.0,83287.0,0.18540043]
[1743317246093,0.1228589,83288.0,83287.0,0.18540043]
[1743317255796,0.1228589,83288.0,83287.0,0.06530013]
[1743317256097,0.1228589,83288.0,83287.0,0.06438013]
[1743317256398,0.1228589,83288.0,83287.0,0.06530013]
[1743317256599,0.1861589,83288.0,83287.0,0.06530013]
[1743317257101,0.1861589,83288.0,83287.0,0.06438013]
[1743317257601,0.1861589,83288.0,83287.0,0.06530013]
[1743317258402,0.5469589,83288.0,83287.0,0.06530013]
[1743317258894,0.5469589,83288.0,83287.0,0.06438013]
[1743317260793,0.5469589,83288.0,83287.0,0.03158013]
[1743317261006,0.5469589,83288.0,83285.0,8e-05]
[1743317261007,0.1201119,83279.0,83278.0,0.0313]
[1743317261196,0.4815519,83279.0,83278.0,0.0645]
[1743317262095,0.4815519,83279.0,83262.0,0.41907193]
[1743317262096,0.1201234,83271.0,83270.0,0.28615293]
[1743317262312,0.4818434,83271.0,83270.0,0.28707293]
[1743317263106,0.5459434,83271.0,83270.0,0.28707293]
[1743317263808,0.5459434,83271.0,83270.0,0.00110013]
[1743317264009,0.5459434,83271.0,83270.0,0.00018013]
[1743317265006,0.1201248,83270.0,83260.0,0.03078]
[1743317265206,0.1201292,83267.0,83261.0,0.032]
[1743317265501,0.1201378,83261.0,83260.0,8e-05]
[1743317265707,0.1201393,83260.0,83256.0,0.2859728]
[1743317266014,0.5782793,83260.0,83259.0,0.00140043]
[1743317266303,0.6934393,83260.0,83259.0,0.00140043]
[1743317266508,0.70491381,83260.0,83259.0,0.00140043]
[1743317267409,0.70491381,83260.0,83259.0,0.00048043]
[1743317268609,0.70591381,83260.0,83259.0,0.00048043]
[1743317271503,0.1201436,83257.0,83256.0,8e-05]
[1743317271698,0.1208236,83257.0,83256.0,8e-05]
[1743317271901,0.1201479,83254.0,83253.0,0.032]
[1743317272104,0.1207879,83254.0,83253.0,0.064]
[1743317274301,0.1207879,83254.0,83253.0,0.0622]
[1743317285419,0.1207879,83254.0,83252.0,0.0315]
[1743317285420,0.0600774,83250.0,83238.0,8e-05]
[1743317285724,0.1201624,83244.0,83243.0,0.00140052]
[1743317285929,0.1208824,83244.0,83243.0,0.00048052]
[1743317286722,0.1860824,83244.0,83243.0,0.00048052]
[1743317286927,0.1860824,83244.0,83243.0,0.00348052]
[1743317287518,0.19790592,83244.0,83243.0,0.00348052]
[1743317287822,0.16530592,83244.0,83243.0,0.00348052]
[1743317288018,0.13270592,83244.0,83243.0,0.36428052]
[1743317288218,0.13270592,83244.0,83243.0,0.36524052]
[1743317290133,0.13270592,83244.0,83243.0,0.00444052]
[1743317290924,0.16300592,83244.0,83243.0,0.00444052]